[Event "Early-Titled-Tuesday-Blitz-January-30-2024"]
[Site "Chess.com"]
[Date "2024.01.30"]
[Round "10"]
[White "NikolaGry"]
[Black "sjoerd893"]
[Result "1-0"]
[WhiteElo "2707"]
[BlackElo "2510"]
[TimeControl "180+1"]
[EndTime "10:00:03 PST"]
[Termination "NikolaGry won by resignation"]

1. e4 {[%clk 0:03:00.9]} 1... c5 {[%clk 0:02:59.3]} 2. Nf3 {[%clk 0:03:00.3]}
2... Nc6 {[%clk 0:02:58.4]} 3. Bb5 {[%clk 0:03:00.1]} 3... g6 {[%clk 0:02:58.3]}
4. O-O {[%clk 0:02:59.7]} 4... Bg7 {[%clk 0:02:58.3]} 5. c3 {[%clk 0:03:00]}
5... Nf6 {[%clk 0:02:57.6]} 6. e5 {[%clk 0:03:00.1]} 6... Nd5 {[%clk 0:02:57.7]}
7. d4 {[%clk 0:03:00.6]} 7... cxd4 {[%clk 0:02:56.9]} 8. cxd4 {[%clk 0:03:00.3]}
8... O-O {[%clk 0:02:55.5]} 9. Nc3 {[%clk 0:03:00.2]} 9... Nxc3 {[%clk
0:02:55.3]} 10. bxc3 {[%clk 0:02:59.9]} 10... d6 {[%clk 0:02:53.6]} 11. Re1
{[%clk 0:02:59.2]} 11... dxe5 {[%clk 0:02:53.2]} 12. Bxc6 {[%clk 0:02:58.9]}
12... bxc6 {[%clk 0:02:51.1]} 13. Nxe5 {[%clk 0:02:58.5]} 13... Bd7 {[%clk
0:02:05.4]} 14. Ba3 {[%clk 0:02:56]} 14... Re8 {[%clk 0:02:03]} 15. Qf3 {[%clk
0:02:53]} 15... Bxe5 {[%clk 0:01:59.2]} 16. Rxe5 {[%clk 0:02:52.2]} 16... Rc8
{[%clk 0:01:56.5]} 17. Rae1 {[%clk 0:02:49.1]} 17... Be6 {[%clk 0:01:54.7]} 18.
Qe2 {[%clk 0:02:42.3]} 18... Qd7 {[%clk 0:01:47.7]} 19. h4 {[%clk 0:02:32.8]}
19... h5 {[%clk 0:01:42]} 20. Qd3 {[%clk 0:02:14.4]} 20... Kg7 {[%clk
0:01:14.2]} 21. Qg3 {[%clk 0:02:11.8]} 21... Rh8 {[%clk 0:01:06]} 22. Bc5 {[%clk
0:01:51.6]} 22... Rce8 {[%clk 0:01:03.9]} 23. d5 {[%clk 0:01:32.1]} 23... Bxd5
{[%clk 0:00:36]} 24. Rxe7 {[%clk 0:01:28.2]} 24... Qf5 {[%clk 0:00:26.8]} 25.
Bd4+ {[%clk 0:01:20]} 25... Kh7 {[%clk 0:00:22.9]} 26. Rxe8 {[%clk 0:01:09.4]}
1-0

[Event "Early-Titled-Tuesday-Blitz-January-30-2024"]
[Site "Chess.com"]
[Date "2024.01.30"]
[Round "10"]
[White "Sethu0025"]
[Black "BogdanDeac"]
[Result "0-1"]
[WhiteElo "2865"]
[BlackElo "3080"]
[TimeControl "180+1"]
[EndTime "10:00:12 PST"]
[Termination "BogdanDeac won by resignation"]

1. e4 {[%clk 0:00:05.2]} 1... c6 {[%clk 0:02:57.9]} 2. d4 {[%clk 0:00:05.3]}
2... d5 {[%clk 0:02:58.5]} 3. e5 {[%clk 0:00:06.2]} 3... Bf5 {[%clk 0:02:58]} 4.
Nf3 {[%clk 0:00:07.1]} 4... e6 {[%clk 0:02:57.8]} 5. Be2 {[%clk 0:00:08]} 5...
c5 {[%clk 0:02:58.4]} 6. Be3 {[%clk 0:00:07.7]} 6... cxd4 {[%clk 0:02:57.5]} 7.
Nxd4 {[%clk 0:00:08.6]} 7... Ne7 {[%clk 0:02:58]} 8. Nd2 {[%clk 0:00:08.2]} 8...
Nbc6 {[%clk 0:02:57.4]} 9. Bb5 {[%clk 0:00:08.9]} 9... Bg6 {[%clk 0:02:34.2]}
10. Bxc6+ {[%clk 0:00:08.7]} 10... bxc6 {[%clk 0:02:32]} 11. b4 {[%clk
0:00:08.8]} 11... Qc7 {[%clk 0:02:21.5]} 12. O-O {[%clk 0:00:08.7]} 12... Nf5
{[%clk 0:02:13.3]} 13. Re1 {[%clk 0:00:08.8]} 13... Bxb4 {[%clk 0:02:03.1]} 14.
c3 {[%clk 0:00:07.8]} 14... Bxc3 {[%clk 0:01:53.6]} 15. Nxf5 {[%clk 0:00:07.9]}
15... Bxf5 {[%clk 0:01:53.6]} 16. Rc1 {[%clk 0:00:08.7]} 16... d4 {[%clk
0:01:53.9]} 17. Bf4 {[%clk 0:00:07.5]} 17... O-O {[%clk 0:01:53.3]} 18. Qf3
{[%clk 0:00:07.2]} 18... Qa5 {[%clk 0:01:52]} 19. g4 {[%clk 0:00:06.2]} 19...
Bg6 {[%clk 0:01:50.4]} 20. Red1 {[%clk 0:00:05.9]} 20... Qxa2 {[%clk 0:01:49.1]}
21. Ne4 {[%clk 0:00:06.3]} 21... Qd5 {[%clk 0:01:46]} 22. Ng5 {[%clk 0:00:05.9]}
22... Qxf3 {[%clk 0:01:43.4]} 23. Nxf3 {[%clk 0:00:06.8]} 23... c5 {[%clk
0:01:44]} 24. h4 {[%clk 0:00:04.5]} 24... Be4 {[%clk 0:01:41.7]} 25. Ng5 {[%clk
0:00:04.4]} 25... Bd5 {[%clk 0:01:41.9]} 26. f3 {[%clk 0:00:04.4]} 26... a5
{[%clk 0:01:40.7]} 27. Bd2 {[%clk 0:00:03.9]} 27... Bxd2 {[%clk 0:01:40.7]} 28.
Rxd2 {[%clk 0:00:04.8]} 28... a4 {[%clk 0:01:38.5]} 29. Rxc5 {[%clk 0:00:04.4]}
29... a3 {[%clk 0:01:38.9]} 30. Rc1 {[%clk 0:00:04.9]} 30... a2 {[%clk
0:01:36.6]} 31. Ra1 {[%clk 0:00:05.6]} 31... Rfb8 {[%clk 0:01:37]} 32. Kf2
{[%clk 0:00:05.7]} 32... Rb1 {[%clk 0:01:35.4]} 33. Rd1 {[%clk 0:00:06]} 33...
Rxd1 {[%clk 0:01:35.3]} 34. Rxd1 {[%clk 0:00:06.9]} 34... a1=Q {[%clk
0:01:35.9]} 0-1

[Event "Early-Titled-Tuesday-Blitz-January-30-2024"]
[Site "Chess.com"]
[Date "2024.01.30"]
[Round "10"]
[White "jaskol95"]
[Black "AlexTruskavetsky"]
[Result "0-1"]
[WhiteElo "2538"]
[BlackElo "2700"]
[TimeControl "180+1"]
[EndTime "10:00:12 PST"]
[Termination "AlexTruskavetsky won by resignation"]

1. e4 {[%clk 0:03:00.9]} 1... c5 {[%clk 0:02:59.5]} 2. Nf3 {[%clk 0:03:01.5]}
2... Nc6 {[%clk 0:02:59.6]} 3. b4 {[%clk 0:03:00.6]} 3... Nxb4 {[%clk
0:02:59.4]} 4. c3 {[%clk 0:03:00.4]} 4... Nc6 {[%clk 0:03:00.1]} 5. d4 {[%clk
0:03:00.4]} 5... cxd4 {[%clk 0:03:01]} 6. cxd4 {[%clk 0:03:00.6]} 6... e6 {[%clk
0:03:01.8]} 7. Nc3 {[%clk 0:02:48.3]} 7... Bb4 {[%clk 0:03:00.5]} 8. Bd2 {[%clk
0:02:48.1]} 8... d5 {[%clk 0:03:00.6]} 9. e5 {[%clk 0:02:47.5]} 9... Nge7 {[%clk
0:02:58.7]} 10. Bd3 {[%clk 0:02:47.2]} 10... h6 {[%clk 0:02:57.2]} 11. O-O
{[%clk 0:02:47.1]} 11... O-O {[%clk 0:02:57.6]} 12. Rb1 {[%clk 0:02:47.4]} 12...
Ba5 {[%clk 0:02:55.5]} 13. Nb5 {[%clk 0:02:46]} 13... Bb6 {[%clk 0:02:54.8]} 14.
Be3 {[%clk 0:02:43.2]} 14... Nf5 {[%clk 0:02:54.1]} 15. Qd2 {[%clk 0:02:27.5]}
15... Nxe3 {[%clk 0:02:53.5]} 16. fxe3 {[%clk 0:02:27.4]} 16... Bd7 {[%clk
0:02:42.5]} 17. Nd6 {[%clk 0:02:26.4]} 17... Rb8 {[%clk 0:02:43]} 18. Qf2 {[%clk
0:02:18.8]} 18... Be8 {[%clk 0:02:37.2]} 19. Qg3 {[%clk 0:02:13.2]} 19... f6
{[%clk 0:02:29]} 20. exf6 {[%clk 0:01:50.4]} 20... Rxf6 {[%clk 0:02:27.2]} 21.
Ne5 {[%clk 0:01:31.1]} 21... Rxf1+ {[%clk 0:02:24.3]} 22. Rxf1 {[%clk
0:01:30.7]} 22... Qxd6 {[%clk 0:02:19.9]} 23. Ng6 {[%clk 0:01:25.9]} 23... Bc7
{[%clk 0:02:09.1]} 24. Rf4 {[%clk 0:00:35.9]} 24... Qa3 {[%clk 0:01:50.8]} 25.
e4 {[%clk 0:00:20.8]} 25... Bxf4 {[%clk 0:01:44.4]} 26. Nxf4 {[%clk 0:00:15.3]}
26... dxe4 {[%clk 0:01:36.4]} 27. Nxe6 {[%clk 0:00:15.4]} 27... Qe7 {[%clk
0:01:33]} 28. Bc4 {[%clk 0:00:14.8]} 28... Kh8 {[%clk 0:01:32.6]} 29. d5 {[%clk
0:00:13.9]} 29... Rc8 {[%clk 0:01:29.7]} 30. dxc6 {[%clk 0:00:14.3]} 30... Rxc6
{[%clk 0:01:30.6]} 31. Bb3 {[%clk 0:00:14.7]} 31... Rxe6 {[%clk 0:01:29.2]} 32.
Bxe6 {[%clk 0:00:13.1]} 32... Qxe6 {[%clk 0:01:30.1]} 33. Qb8 {[%clk 0:00:13.2]}
33... e3 {[%clk 0:01:27]} 34. g3 {[%clk 0:00:12.5]} 34... e2 {[%clk 0:01:27.2]}
0-1

[Event "Early-Titled-Tuesday-Blitz-January-30-2024"]
[Site "Chess.com"]
[Date "2024.01.30"]
[Round "10"]
[White "Alex_Sahakyan2006"]
[Black "Oleksandr_Bortnyk"]
[Result "0-1"]
[WhiteElo "2883"]
[BlackElo "3110"]
[TimeControl "180+1"]
[EndTime "10:00:20 PST"]
[Termination "Oleksandr_Bortnyk won by resignation"]

1. e4 {[%clk 0:03:00.9]} 1... Nf6 {[%clk 0:02:59.2]} 2. Nc3 {[%clk 0:02:55.1]}
2... d5 {[%clk 0:02:58.9]} 3. e5 {[%clk 0:02:52.6]} 3... Nfd7 {[%clk 0:02:58.8]}
4. e6 {[%clk 0:02:46.3]} 4... fxe6 {[%clk 0:02:58.5]} 5. d4 {[%clk 0:02:46.8]}
5... c5 {[%clk 0:02:58.7]} 6. Bd3 {[%clk 0:02:45.6]} 6... g6 {[%clk 0:02:58.5]}
7. Nf3 {[%clk 0:02:21.1]} 7... Nc6 {[%clk 0:02:57.7]} 8. Ng5 {[%clk 0:02:13]}
8... Nf6 {[%clk 0:02:22.4]} 9. dxc5 {[%clk 0:02:07.1]} 9... e5 {[%clk
0:02:22.4]} 10. Nxh7 {[%clk 0:01:39.7]} 10... Rxh7 {[%clk 0:02:19.9]} 11. Bxg6+
{[%clk 0:01:38.5]} 11... Rf7 {[%clk 0:02:20.6]} 12. Bg5 {[%clk 0:01:01.6]} 12...
Be6 {[%clk 0:02:18.3]} 13. h4 {[%clk 0:00:47.1]} 13... d4 {[%clk 0:02:18.8]} 14.
Ne2 {[%clk 0:00:28.4]} 14... Qd5 {[%clk 0:02:18.3]} 15. h5 {[%clk 0:00:19.9]}
15... Qxg2 {[%clk 0:02:06.7]} 16. Rg1 {[%clk 0:00:19.9]} 16... Qh2 {[%clk
0:02:03.1]} 17. Qd3 {[%clk 0:00:10.3]} 17... O-O-O {[%clk 0:01:38.6]} 18. O-O-O
{[%clk 0:00:10.4]} 18... Rg7 {[%clk 0:01:29.2]} 19. Qf3 {[%clk 0:00:04.7]} 19...
e4 {[%clk 0:01:24.3]} 20. Bxe4 {[%clk 0:00:02.1]} 20... Nxe4 {[%clk 0:01:21.8]}
21. Qxe4 {[%clk 0:00:02.6]} 21... Qe5 {[%clk 0:01:19.8]} 22. Qxe5 {[%clk
0:00:02.8]} 22... Nxe5 {[%clk 0:01:20.7]} 23. Nxd4 {[%clk 0:00:02.2]} 23... Bg4
{[%clk 0:01:12.1]} 24. Rde1 {[%clk 0:00:01.9]} 24... Rxg5 {[%clk 0:01:10.8]} 25.
f4 {[%clk 0:00:02.5]} 25... Rxh5 {[%clk 0:01:08.8]} 26. c3 {[%clk 0:00:02]}
26... Nd3+ {[%clk 0:01:08.7]} 0-1

[Event "Early-Titled-Tuesday-Blitz-January-30-2024"]
[Site "Chess.com"]
[Date "2024.01.30"]
[Round "10"]
[White "oogee"]
[Black "Klavdia_Nik"]
[Result "1-0"]
[WhiteElo "2322"]
[BlackElo "2129"]
[TimeControl "180+1"]
[EndTime "10:00:26 PST"]
[Termination "oogee won on time"]

1. e4 {[%clk 0:03:00.9]} 1... c5 {[%clk 0:02:58.2]} 2. g3 {[%clk 0:03:00.8]}
2... g6 {[%clk 0:02:56.6]} 3. Bg2 {[%clk 0:03:00.6]} 3... Bg7 {[%clk 0:02:56.8]}
4. h4 {[%clk 0:02:59.7]} 4... h5 {[%clk 0:02:54.6]} 5. Nh3 {[%clk 0:02:58.5]}
5... Nc6 {[%clk 0:02:51.4]} 6. c3 {[%clk 0:02:58.4]} 6... d6 {[%clk 0:02:47]} 7.
O-O {[%clk 0:02:54]} 7... Nf6 {[%clk 0:02:41.3]} 8. d4 {[%clk 0:02:52.1]} 8...
cxd4 {[%clk 0:02:34.6]} 9. cxd4 {[%clk 0:02:51.9]} 9... O-O {[%clk 0:02:34.3]}
10. Nc3 {[%clk 0:02:47.3]} 10... a6 {[%clk 0:02:21.2]} 11. b3 {[%clk 0:02:43.1]}
11... Ng4 {[%clk 0:02:14.7]} 12. Ne2 {[%clk 0:02:40.4]} 12... Rb8 {[%clk
0:02:02.9]} 13. Bb2 {[%clk 0:02:35.4]} 13... Qb6 {[%clk 0:01:40.1]} 14. Nhf4
{[%clk 0:02:27.1]} 14... e6 {[%clk 0:01:34.6]} 15. Qd2 {[%clk 0:02:23.3]} 15...
Rd8 {[%clk 0:01:19.6]} 16. d5 {[%clk 0:02:19.6]} 16... Bxb2 {[%clk 0:01:13.4]}
17. Qxb2 {[%clk 0:02:18.5]} 17... Nce5 {[%clk 0:01:13]} 18. dxe6 {[%clk
0:02:13.6]} 18... Bxe6 {[%clk 0:01:13.9]} 19. Nxe6 {[%clk 0:02:11.8]} 19... fxe6
{[%clk 0:01:13.2]} 20. Nf4 {[%clk 0:02:08.8]} 20... Kf7 {[%clk 0:01:10]} 21. Kh1
{[%clk 0:02:01.1]} 21... Rbc8 {[%clk 0:01:02.1]} 22. Rad1 {[%clk 0:01:58.5]}
22... Qc5 {[%clk 0:00:53.9]} 23. Qe2 {[%clk 0:01:50]} 23... Qc2 {[%clk
0:00:49.7]} 24. Rd2 {[%clk 0:01:49.9]} 24... Qc5 {[%clk 0:00:46.5]} 25. Nh3
{[%clk 0:01:45.3]} 25... Re8 {[%clk 0:00:28.8]} 26. f4 {[%clk 0:01:39.3]} 26...
Nd7 {[%clk 0:00:21.6]} 27. Rd3 {[%clk 0:01:34.6]} 27... e5 {[%clk 0:00:12.6]}
28. fxe5+ {[%clk 0:01:31.8]} 28... Kg7 {[%clk 0:00:12.8]} 29. exd6 {[%clk
0:01:19.1]} 29... Nde5 {[%clk 0:00:06.6]} 30. d7 {[%clk 0:01:15.9]} 1-0

[Event "Early-Titled-Tuesday-Blitz-January-30-2024"]
[Site "Chess.com"]
[Date "2024.01.30"]
[Round "10"]
[White "RCone"]
[Black "viktorgen2021"]
[Result "0-1"]
[WhiteElo "2395"]
[BlackElo "2567"]
[TimeControl "180+1"]
[EndTime "10:00:33 PST"]
[Termination "viktorgen2021 won by checkmate"]

1. e4 {[%clk 0:02:55.3]} 1... g6 {[%clk 0:02:59.7]} 2. d4 {[%clk 0:02:54.9]}
2... Bg7 {[%clk 0:03:00.3]} 3. Nc3 {[%clk 0:02:55.4]} 3... d6 {[%clk 0:03:00.9]}
4. Be3 {[%clk 0:02:55.8]} 4... Nf6 {[%clk 0:03:01.5]} 5. Qd2 {[%clk 0:02:56]}
5... c6 {[%clk 0:03:02.2]} 6. O-O-O {[%clk 0:02:54.9]} 6... O-O {[%clk
0:03:01.6]} 7. h4 {[%clk 0:02:54.3]} 7... h5 {[%clk 0:03:01.8]} 8. Nh3 {[%clk
0:02:49.1]} 8... b5 {[%clk 0:03:01.7]} 9. Ng5 {[%clk 0:02:13.2]} 9... b4 {[%clk
0:02:58.3]} 10. Ne2 {[%clk 0:02:10.2]} 10... Qa5 {[%clk 0:02:58.1]} 11. Kb1
{[%clk 0:02:09.8]} 11... e5 {[%clk 0:02:54.6]} 12. f3 {[%clk 0:01:53.4]} 12...
Nbd7 {[%clk 0:02:52.3]} 13. Nc1 {[%clk 0:01:38]} 13... exd4 {[%clk 0:02:49.3]}
14. Bxd4 {[%clk 0:01:27.5]} 14... Rd8 {[%clk 0:02:37.1]} 15. Bc4 {[%clk
0:01:20.4]} 15... d5 {[%clk 0:02:37.3]} 16. Bb3 {[%clk 0:01:11.2]} 16... c5
{[%clk 0:02:24.6]} 17. Bxf6 {[%clk 0:01:06.1]} 17... Nxf6 {[%clk 0:02:25.2]} 18.
exd5 {[%clk 0:01:05.4]} 18... Ba6 {[%clk 0:02:23.2]} 19. Nxf7 {[%clk 0:00:43.1]}
19... Kxf7 {[%clk 0:02:18.2]} 20. d6+ {[%clk 0:00:43.4]} 20... c4 {[%clk
0:02:17.9]} 21. Qg5 {[%clk 0:00:33.2]} 21... Qxg5 {[%clk 0:02:10]} 22. hxg5
{[%clk 0:00:34.1]} 22... Ne8 {[%clk 0:02:07.8]} 23. d7 {[%clk 0:00:27.2]} 23...
Nc7 {[%clk 0:02:00]} 24. Ba4 {[%clk 0:00:26.1]} 24... Bb5 {[%clk 0:01:52.6]} 25.
Bxb5 {[%clk 0:00:25.6]} 25... Nxb5 {[%clk 0:01:53.5]} 26. Rd5 {[%clk 0:00:23]}
26... Rab8 {[%clk 0:01:47.2]} 27. Rhd1 {[%clk 0:00:22.7]} 27... c3 {[%clk
0:01:46.9]} 28. Nd3 {[%clk 0:00:18.9]} 28... cxb2 {[%clk 0:01:46.1]} 29. Rxb5
{[%clk 0:00:12.5]} 29... Rxb5 {[%clk 0:01:44.3]} 30. Nxb2 {[%clk 0:00:12.4]}
30... Bxb2 {[%clk 0:01:42.7]} 31. Kxb2 {[%clk 0:00:12.3]} 31... Ke6 {[%clk
0:01:43.1]} 32. Re1+ {[%clk 0:00:07]} 32... Re5 {[%clk 0:01:42.9]} 33. Rd1
{[%clk 0:00:05.9]} 33... Rxd7 {[%clk 0:01:42.9]} 34. Rxd7 {[%clk 0:00:03.6]}
34... Kxd7 {[%clk 0:01:43.8]} 35. f4 {[%clk 0:00:02.6]} 35... Re2 {[%clk
0:01:43.9]} 36. g3 {[%clk 0:00:03.2]} 36... Rg2 {[%clk 0:01:44.1]} 37. Kb3
{[%clk 0:00:03.4]} 37... Rxg3+ {[%clk 0:01:44.3]} 38. Kxb4 {[%clk 0:00:04.3]}
38... h4 {[%clk 0:01:44.8]} 39. c4 {[%clk 0:00:04]} 39... h3 {[%clk 0:01:45]}
40. f5 {[%clk 0:00:04.9]} 40... gxf5 {[%clk 0:01:45.1]} 41. g6 {[%clk
0:00:04.9]} 41... Rxg6 {[%clk 0:01:46]} 42. a4 {[%clk 0:00:04.3]} 42... h2
{[%clk 0:01:46.4]} 43. a5 {[%clk 0:00:04.9]} 43... h1=Q {[%clk 0:01:46.3]} 44.
c5 {[%clk 0:00:05.8]} 44... Qb1+ {[%clk 0:01:43.7]} 45. Kc4 {[%clk 0:00:05.4]}
45... Rg4+ {[%clk 0:01:41.2]} 46. Kd5 {[%clk 0:00:05]} 46... Qe4# {[%clk
0:01:40.2]} 0-1

[Event "Early-Titled-Tuesday-Blitz-January-30-2024"]
[Site "Chess.com"]
[Date "2024.01.30"]
[Round "10"]
[White "MetiForce"]
[Black "VladimirKramnik"]
[Result "1-0"]
[WhiteElo "2864"]
[BlackElo "2938"]
[TimeControl "180+1"]
[EndTime "10:00:34 PST"]
[Termination "MetiForce won on time"]

1. d4 {[%clk 0:02:57.8]} 1... Nf6 {[%clk 0:02:58.9]} 2. c4 {[%clk 0:02:58.5]}
2... e6 {[%clk 0:02:58.9]} 3. Nc3 {[%clk 0:02:59.2]} 3... d5 {[%clk 0:02:58.4]}
4. cxd5 {[%clk 0:02:59]} 4... exd5 {[%clk 0:02:57.9]} 5. Bg5 {[%clk 0:02:58]}
5... c6 {[%clk 0:02:58.1]} 6. e3 {[%clk 0:02:58.6]} 6... Bf5 {[%clk 0:02:57.2]}
7. Qf3 {[%clk 0:02:58.9]} 7... Bg6 {[%clk 0:02:56.7]} 8. Bxf6 {[%clk 0:02:59.5]}
8... Qxf6 {[%clk 0:02:57]} 9. Qxf6 {[%clk 0:03:00.2]} 9... gxf6 {[%clk
0:02:57.6]} 10. Nf3 {[%clk 0:03:01.1]} 10... a5 {[%clk 0:02:55.9]} 11. Nh4
{[%clk 0:03:01.4]} 11... Bb4 {[%clk 0:02:55]} 12. Rc1 {[%clk 0:02:58.3]} 12...
Nd7 {[%clk 0:02:50.5]} 13. a3 {[%clk 0:02:58.1]} 13... Be7 {[%clk 0:02:47]} 14.
Ne2 {[%clk 0:02:55.8]} 14... f5 {[%clk 0:02:38.9]} 15. Nf3 {[%clk 0:02:55.8]}
15... Ra6 {[%clk 0:02:21.8]} 16. Nf4 {[%clk 0:02:49.4]} 16... Rb6 {[%clk
0:02:21.3]} 17. Rc2 {[%clk 0:02:49.6]} 17... Bd6 {[%clk 0:02:16.8]} 18. g3
{[%clk 0:02:30]} 18... Ke7 {[%clk 0:02:12.1]} 19. h4 {[%clk 0:02:29.8]} 19...
Bxf4 {[%clk 0:02:04.9]} 20. gxf4 {[%clk 0:02:26.4]} 20... Bh5 {[%clk 0:02:04.8]}
21. Nd2 {[%clk 0:02:24.1]} 21... Nf6 {[%clk 0:01:51.6]} 22. f3 {[%clk
0:02:24.1]} 22... Ne8 {[%clk 0:01:41.6]} 23. Rg1 {[%clk 0:02:18.8]} 23... Nd6
{[%clk 0:01:38.8]} 24. Bd3 {[%clk 0:02:13.3]} 24... h6 {[%clk 0:01:34.6]} 25.
Kf2 {[%clk 0:02:09.8]} 25... Kf6 {[%clk 0:01:32.9]} 26. b3 {[%clk 0:02:03.5]}
26... Re8 {[%clk 0:01:31.1]} 27. Rc5 {[%clk 0:02:00]} 27... Ra8 {[%clk
0:01:28.7]} 28. e4 {[%clk 0:01:29.8]} 28... fxe4 {[%clk 0:01:17.8]} 29. fxe4
{[%clk 0:01:30.7]} 29... dxe4 {[%clk 0:01:10.9]} 30. Rxh5 {[%clk 0:01:30.7]}
30... exd3 {[%clk 0:01:11]} 31. Rxh6+ {[%clk 0:01:31.4]} 31... Ke7 {[%clk
0:01:11.5]} 32. Re1+ {[%clk 0:01:19.7]} 32... Kd7 {[%clk 0:01:11.1]} 33. Rxd6+
{[%clk 0:01:20.3]} 33... Kxd6 {[%clk 0:01:11.4]} 34. Nc4+ {[%clk 0:01:21]} 34...
Kc7 {[%clk 0:01:05.9]} 35. Re7+ {[%clk 0:01:21.2]} 1-0

[Event "Early-Titled-Tuesday-Blitz-January-30-2024"]
[Site "Chess.com"]
[Date "2024.01.30"]
[Round "10"]
[White "GMRAVEN_ON_YOUTUBE"]
[Black "vladgoncharov"]
[Result "1-0"]
[WhiteElo "2790"]
[BlackElo "2639"]
[TimeControl "180+1"]
[EndTime "10:00:36 PST"]
[Termination "GMRAVEN_ON_YOUTUBE won by resignation"]

1. f4 {[%clk 0:03:00.9]} 1... Nf6 {[%clk 0:02:57.6]} 2. Nf3 {[%clk 0:02:59.9]}
2... g6 {[%clk 0:02:57.8]} 3. c4 {[%clk 0:02:59.2]} 3... Bg7 {[%clk 0:02:57.5]}
4. Nc3 {[%clk 0:02:59.8]} 4... d5 {[%clk 0:02:56.5]} 5. cxd5 {[%clk 0:02:46.8]}
5... Nxd5 {[%clk 0:02:55.6]} 6. e4 {[%clk 0:02:47.1]} 6... Nxf4 {[%clk
0:02:48.1]} 7. d4 {[%clk 0:02:47.3]} 7... Ne6 {[%clk 0:02:42.3]} 8. d5 {[%clk
0:02:46.8]} 8... Nc5 {[%clk 0:02:35.5]} 9. Be3 {[%clk 0:02:46.6]} 9... Nbd7
{[%clk 0:02:29.6]} 10. Bd4 {[%clk 0:02:43.4]} 10... e5 {[%clk 0:02:22.9]} 11.
Be3 {[%clk 0:02:33.1]} 11... b6 {[%clk 0:02:14.4]} 12. b4 {[%clk 0:02:30.3]}
12... Nb7 {[%clk 0:02:13.7]} 13. h4 {[%clk 0:02:29.6]} 13... h5 {[%clk
0:02:11.9]} 14. Bg5 {[%clk 0:02:22.2]} 14... f6 {[%clk 0:02:09.9]} 15. Be3
{[%clk 0:02:22.5]} 15... Nd6 {[%clk 0:02:09.5]} 16. Rc1 {[%clk 0:02:21.4]} 16...
a5 {[%clk 0:02:01.6]} 17. a3 {[%clk 0:02:19.8]} 17... axb4 {[%clk 0:02:01.1]}
18. axb4 {[%clk 0:02:20.7]} 18... O-O {[%clk 0:02:00.5]} 19. Bd3 {[%clk
0:02:14.7]} 19... Ba6 {[%clk 0:01:42.8]} 20. b5 {[%clk 0:02:12.9]} 20... Bc8
{[%clk 0:01:42.1]} 21. Na4 {[%clk 0:02:03.3]} 21... f5 {[%clk 0:01:28.2]} 22.
Ng5 {[%clk 0:01:59.6]} 22... Nf6 {[%clk 0:01:17.9]} 23. exf5 {[%clk 0:01:56.5]}
23... gxf5 {[%clk 0:01:17.4]} 24. Ne6 {[%clk 0:01:56.1]} 24... Bxe6 {[%clk
0:01:16.8]} 25. dxe6 {[%clk 0:01:57]} 25... Qe7 {[%clk 0:01:15.8]} 26. O-O
{[%clk 0:01:56.2]} 26... Ng4 {[%clk 0:01:12.2]} 27. Bg5 {[%clk 0:01:56.3]} 27...
Qxe6 {[%clk 0:01:12]} 28. Rxc7 {[%clk 0:01:54.5]} 28... e4 {[%clk 0:01:07.9]}
29. Be2 {[%clk 0:01:53.6]} 29... Kh8 {[%clk 0:00:52]} 30. Rc6 {[%clk 0:01:44.9]}
30... Qe5 {[%clk 0:00:51]} 31. Bf4 {[%clk 0:01:28.9]} 31... Qd4+ {[%clk
0:00:50.9]} 32. Kh1 {[%clk 0:01:29.4]} 32... Qxa4 {[%clk 0:00:33.7]} 33. Qxd6
{[%clk 0:01:25.7]} 33... Qa2 {[%clk 0:00:29.2]} 34. Bc4 {[%clk 0:01:24.1]} 34...
Qa1 {[%clk 0:00:21.2]} 35. Qg6 {[%clk 0:01:20.2]} 35... Qxf1+ {[%clk 0:00:20]}
36. Bxf1 {[%clk 0:01:20.2]} 36... Ra1 {[%clk 0:00:20]} 37. Rc1 {[%clk
0:01:20.2]} 37... Rxc1 {[%clk 0:00:15.3]} 38. Bxc1 {[%clk 0:01:21.1]} 38... Ra8
{[%clk 0:00:14.3]} 39. Qxh5+ {[%clk 0:01:21]} 39... Kg8 {[%clk 0:00:13]} 40.
Bc4+ {[%clk 0:01:21.5]} 1-0